bitfinex/quotes_ETHUSD_20251122
["timestamp","ask_amount","ask_price","bid_price","bid_amount"]
[1763809231425,0.002,2717.1,2717.0,14.13308576]
[1763809231625,0.002,2717.1,2717.0,10.25008576]
[1763809231827,0.002,2717.1,2717.0,6.57877049]
[1763809232030,0.002,2717.1,2717.0,6.70277049]
[1763809234053,0.002,2717.1,2717.0,10.28689105]
[1763809234348,0.002,2717.1,2717.0,10.25008576]
[1763809234640,0.002,2717.4,2717.0,10.25008576]
[1763809234641,0.002,2717.4,2717.3,8.40712718]
[1763809234856,0.002,2717.4,2717.3,9.7412399]
[1763809235014,0.002,2717.4,2717.3,10.2205399]
[1763809235215,0.002,2717.4,2717.3,10.36798223]
[1763809235865,0.002,2717.4,2717.3,14.04810588]
[1763809236360,0.002,2717.4,2717.3,14.17210588]
[1763809237411,0.002,2717.4,2717.3,10.09528661]
[1763809237628,0.002,2717.4,2717.3,13.76660188]
[1763809239135,0.002,2717.4,2717.3,14.17210588]
[1763809239938,0.002,2717.5,2717.4,1.31249664]
[1763809240144,0.002,2717.5,2717.4,4.57999356]
[1763809241338,0.002,2717.6,2717.4,8.42619368]
[1763809241548,0.002,2717.6,2717.5,9.67101191]
[1763809242057,0.002,2717.6,2717.5,13.35086471]
[1763809242432,0.002,2717.7,2717.6,4.45430791]
[1763809242760,0.002,2717.7,2717.6,6.49160397]
[1763809243140,0.002,2717.7,2717.6,6.63901696]
[1763809243542,0.002,2717.7,2717.6,3.09170169]
[1763809243946,0.002,2717.7,2717.6,6.63901696]
[1763809244269,0.002,2717.7,2717.6,10.31873435]
[1763809246839,0.002,2717.7,2717.6,6.77141908]
[1763809247169,0.002,2717.7,2717.6,10.31873435]
[1763809247536,0.002,2717.7,2717.6,6.77141908]
[1763809249781,0.4882,2717.7,2717.6,2.03950169]
[1763809249958,0.9702,2717.7,2717.6,4.45430791]
[1763809250161,0.9702,2717.7,2717.6,3.67131527]
[1763809252097,0.9702,2717.7,2717.4,3.54731527]
[1763809252386,0.0474,2717.5,2717.2,3.54731527]
[1763809252560,0.002,2717.7,2717.5,0.124]
[1763809252956,0.4862,2717.6,2717.5,0.124]
[1763809253157,0.9682,2717.6,2717.5,0.124]
[1763809256190,0.9682,2717.6,2717.5,0.125]
[1763809256672,0.9682,2717.6,2717.5,0.001]
[1763809256893,0.9682,2717.6,2717.5,0.125]
[1763809259671,0.9682,2717.6,2717.5,0.001]
[1763809260009,0.9682,2717.6,2717.5,0.125]
[1763809260220,0.9682,2717.6,2717.5,0.001]
[1763809260383,0.9682,2717.6,2717.5,0.125]
[1763809266729,0.9682,2717.6,2717.5,0.001]
[1763809266931,1.91201028,2717.6,2717.5,0.001]
[1763809267098,2.45834284,2717.6,2717.5,0.121]
[1763809267425,3.01136367,2717.6,2717.5,0.002]
[1763809267723,6.56077894,2717.6,2717.5,0.001]
[1763809267924,1.43639264,2717.5,2717.4,0.122]
[1763809268126,0.4739,2717.1,2717.0,0.001]
[1763809268451,0.4739,2717.1,2717.0,0.125]
[1763809268631,0.958,2717.1,2717.0,0.125]
[1763809269731,1.10552934,2717.1,2717.0,0.125]
[1763809269902,0.958,2717.1,2717.0,0.125]
[1763809270536,0.958,2717.1,2717.0,0.001]
[1763809270703,1.42328364,2717.1,2717.0,0.125]
[1763809272634,0.958,2717.1,2717.0,0.125]
[1763809275926,0.4739,2717.1,2717.0,0.125]
[1763809276236,0.4841,2717.4,2717.0,0.125]
[1763809276438,0.4739,2717.1,2717.0,0.125]
[1763809276820,0.958,2717.1,2717.0,0.125]
[1763809279947,0.958,2717.1,2717.0,0.001]
[1763809280249,0.958,2717.1,2717.0,0.125]
[1763809280613,0.99481764,2717.1,2717.0,0.001]
[1763809280925,0.99481764,2717.1,2717.0,0.125]
[1763809281130,1.10553641,2717.1,2717.0,0.125]
[1763809282624,0.958,2717.1,2717.0,0.125]
[1763809283933,0.4739,2717.1,2717.0,0.125]
[1763809284151,0.7250022,2717.3,2717.0,0.5887]
[1763809284152,0.57748048,2717.3,2717.0,0.5887]
[1763809285762,0.4739,2717.1,2717.0,0.125]
[1763809285941,0.57748048,2717.3,2717.0,0.125]
[1763809286127,1.06158048,2717.3,2717.0,0.125]
[1763809287662,0.4739,2717.1,2717.0,0.125]
[1763809287870,0.4739,2717.1,2717.0,0.001]
[1763809288072,0.4739,2717.1,2717.0,0.125]
[1763809288367,0.57748048,2717.3,2717.0,0.5887]
[1763809288547,0.57748048,2717.3,2717.0,1.0498]
[1763809288741,0.57748048,2717.3,2717.0,0.5887]
[1763809289128,0.4739,2717.1,2717.0,0.125]
[1763809289662,0.958,2717.1,2717.0,0.001]
[1763809289852,0.958,2717.1,2717.0,0.125]
[1763809297381,0.958,2717.1,2717.0,0.001]
[1763809297585,0.99481764,2717.1,2717.0,0.001]
[1763809298743,0.958,2717.1,2717.0,0.001]
[1763809300283,1.10554675,2717.1,2717.0,0.001]
[1763809303291,1.68308931,2717.1,2717.0,0.001]
[1763809306015,1.05144256,2717.1,2717.0,0.001]
[1763809306196,1.52444256,2717.1,2717.0,0.001]
[1763809309894,0.57754256,2717.1,2717.0,0.001]
[1763809310067,1.07174256,2717.1,2717.0,0.001]
[1763809310799,0.57754256,2717.1,2717.0,0.4902]
[1763809310972,0.4942,2717.1,2717.0,0.001]
[1763809311177,0.4942,2717.1,2717.0,0.125]
[1763809311178,0.9672,2717.1,2717.0,0.125]
[1763809311978,0.4942,2717.1,2717.0,0.125]
[1763809314105,0.002,2717.4,2717.0,0.6142]
[1763809314280,0.4942,2717.1,2717.0,0.125]
[1763809314798,0.9672,2717.1,2717.0,0.125]
[1763809315998,0.4942,2717.1,2717.0,0.125]
[1763809316176,0.473,2717.3,2717.0,0.125]
[1763809318297,0.57950717,2717.4,2717.0,0.125]
[1763809318602,0.57950717,2717.4,2717.0,0.5752]
[1763809318907,1.05250717,2717.4,2717.0,0.125]
[1763809320005,0.002,2717.4,2717.1,0.6305]
[1763809320370,0.002,2717.4,2717.3,0.4892]
[1763809321194,0.9692,2717.4,2717.0,0.001]
[1763809321529,0.475,2717.4,2717.1,0.124]
[1763809321822,0.475,2717.4,2717.0,0.001]
[1763809321823,0.473,2717.3,2717.0,0.001]
[1763809321990,0.4942,2717.1,2717.0,0.001]
[1763809322187,0.4942,2717.1,2717.0,0.125]
[1763809322519,0.475,2717.4,2717.0,0.125]
[1763809322823,0.4942,2717.1,2717.0,0.125]
[1763809324107,0.002,2717.4,2717.0,0.6142]
[1763809324702,0.002,2717.4,2717.0,1.0644]
[1763809325323,0.002,2717.4,2717.3,0.4892]
[1763809325517,0.002,2717.4,2717.1,0.1724]
[1763809326027,0.002,2717.4,2717.1,0.6225]
[1763809326226,0.002,2717.4,2717.3,0.4692]
[1763809326522,0.002,2717.4,2717.3,0.9193]
[1763809333434,0.4757,2717.4,2717.1,0.1724]
[1763809333833,0.4757,2717.4,2717.2,0.124]
[1763809334314,0.4737,2717.2,2717.0,0.001]
[1763809334515,0.4737,2717.2,2717.1,0.124]
[1763809335126,0.4935,2717.3,2717.1,0.124]
[1763809335351,0.002,2717.4,2717.1,0.124]
[1763809335549,0.53231764,2717.4,2717.1,0.124]
[1763809335959,0.002,2717.4,2717.1,0.124]
[1763809337597,0.002,2717.4,2717.3,4.01652126]
[1763809337750,0.002,2717.4,2717.3,4.46662126]
[1763809343405,0.002,2717.4,2717.3,0.4692]
[1763809343727,0.002,2717.4,2717.3,0.5932]
[1763809344307,0.002,2717.4,2717.3,1.0433]
[1763809344618,0.002,2717.4,2717.3,0.5932]
[1763809345611,0.002,2717.4,2717.3,4.14052126]
[1763809345820,0.002,2717.4,2717.3,4.59062126]
[1763809346514,0.4757,2717.4,2717.3,0.124]
[1763809346701,0.4757,2717.4,2717.0,0.001]
[1763809346904,0.4757,2717.4,2717.1,0.124]
[1763809348418,0.002,2717.4,2717.3,4.01652126]
[1763809348622,0.002,2717.4,2717.3,4.46662126]
[1763809348917,0.002,2717.4,2717.3,0.9193]
[1763809350119,0.002,2717.4,2717.3,0.4692]
[1763809350705,0.4757,2717.4,2717.1,4.28792126]
[1763809351019,0.4737,2717.2,2717.0,0.001]
[1763809351223,0.4935,2717.3,2717.1,0.124]
[1763809351598,0.4737,2717.2,2717.1,0.124]
[1763809352202,0.9672,2717.2,2717.1,0.124]
[1763809352426,0.9672,2717.2,2717.0,0.001]
[1763809352628,0.5494,2717.1,2717.0,0.001]
[1763809352830,0.5494,2717.1,2717.0,0.125]
[1763809356017,0.65258311,2717.1,2717.0,0.125]
[1763809356200,0.4705,2717.1,2717.0,0.125]
[1763809356402,0.002,2717.4,2717.0,0.6156]
[1763809356630,0.002,2717.4,2717.3,0.4986]
[1763809357026,0.4589,2717.4,2717.1,0.6579]
[1763809357234,0.002,2717.4,2717.3,0.4986]
[1763809357433,0.002,2717.4,2717.3,0.92296213]
[1763809357738,0.002,2717.4,2717.3,0.9588]
[1763809361753,0.002,2717.4,2717.0,0.125]
[1763809361933,0.002,2717.4,2717.0,0.5852]
[1763809362134,0.002,2717.4,2717.0,0.125]
[1763809362470,0.002,2717.4,2717.0,0.5852]
[1763809362656,0.002,2717.4,2717.0,4.13252126]
[1763809362851,0.002,2717.4,2717.1,0.41335213]
[1763809363627,0.002,2717.4,2717.1,0.87355213]
[1763809364655,0.002,2717.4,2717.3,0.4986]
[1763809365447,0.002,2717.4,2717.3,0.9588]
[1763809366475,0.002,2717.4,2717.1,0.60715213]
[1763809366645,0.002,2717.4,2717.0,0.001]
[1763809366646,0.4569,2717.2,2717.0,0.001]
[1763809366847,0.4569,2717.1,2717.0,0.001]
[1763809367175,0.4569,2717.1,2717.0,0.125]
[1763809368036,0.002,2717.4,2717.0,0.6236]
[1763809368241,0.4719,2717.3,2717.0,0.6236]
[1763809368476,0.002,2717.4,2717.0,0.125]
[1763809368637,0.002,2717.4,2717.3,0.4986]
[1763809369372,0.002,2717.4,2717.1,0.654]
[1763809369948,0.002,2717.4,2717.0,0.125]
[1763809370145,0.4739,2717.4,2717.0,0.125]
[1763809371066,0.002,2717.4,2717.0,0.5852]
[1763809371479,0.002,2717.4,2717.1,0.654]
[1763809371868,0.002,2717.4,2717.3,0.4986]
[1763809372848,0.002,2717.4,2717.1,0.1938]
[1763809373182,0.57946224,2717.4,2717.1,0.654]
[1763809373819,0.002,2717.4,2717.3,0.4986]
[1763809374379,0.002,2717.4,2717.3,0.9588]
[1763809375214,0.002,2717.4,2717.1,0.1938]
[1763809375403,0.002,2717.4,2717.2,0.124]
[1763809377119,0.2605,2717.3,2717.2,0.124]
[1763809378101,0.002,2717.4,2717.2,0.124]
[1763809378789,0.2626,2717.3,2717.2,0.124]
[1763809379389,0.7303,2717.3,2717.2,0.124]
[1763809380614,0.2626,2717.3,2717.2,0.124]
[1763809380791,0.29941764,2717.3,2717.2,0.124]
[1763809380989,0.76711764,2717.3,2717.2,0.124]
[1763809381185,0.7303,2717.3,2717.2,0.124]
[1763809381406,0.76711764,2717.3,2717.2,0.124]
[1763809382252,0.76711764,2717.3,2717.0,0.001]
[1763809382543,0.002,2717.4,2717.0,0.001]
[1763809382544,0.2605,2717.1,2717.0,0.001]
[1763809382933,0.7303,2717.1,2717.0,0.001]
[1763809387622,0.2605,2717.1,2717.0,0.001]
[1763809387963,0.7213,2717.1,2717.0,0.001]
[1763809388564,0.0136,2717.1,2717.0,0.001]
[1763809388751,0.60843206,2717.4,2717.0,0.4583]
[1763809388953,0.6452497,2717.4,2717.0,0.4583]
[1763809389160,0.4614,2717.1,2717.0,0.001]
[1763809389824,1.67611028,2717.1,2717.0,0.001]
[1763809390038,1.63929264,2717.1,2717.0,0.001]
[1763809390635,0.7323,2717.1,2717.0,0.001]
[1763809391361,0.87984022,2717.1,2717.0,0.001]
[1763809391958,0.60894022,2717.1,2717.0,0.001]
[1763809392524,0.4614,2717.1,2717.0,0.001]
[1763809392730,0.1475326,2717.3,2717.0,0.4583]
[1763809392951,0.002,2717.4,2717.0,0.9561]
[1763809393462,0.4628,2717.4,2717.0,0.4583]
[1763809393662,0.2715,2717.1,2717.0,0.001]
[1763809394050,0.002,2717.4,2717.0,0.4583]
[1763809394660,0.002,2717.4,2717.0,0.9561]
[1763809395178,0.002,2717.4,2717.1,0.4978]
[1763809395677,0.57949003,2717.4,2717.1,0.6874]
[1763809395874,0.57949003,2717.4,2717.3,0.4573]
[1763809399295,0.85099003,2717.4,2717.0,0.001]
[1763809399483,1.03839003,2717.4,2717.0,0.001]
[1763809399854,0.03681764,2717.3,2717.0,0.001]
[1763809400159,0.57949003,2717.4,2717.1,0.6874]
[1763809400349,0.57949003,2717.4,2717.3,0.4573]
[1763809400546,0.57949003,2717.4,2717.3,0.5813]
[1763809404470,0.57949003,2717.4,2717.3,1.0791]
[1763809404984,0.57949003,2717.4,2717.3,0.5813]
[1763809405187,0.57949003,2717.4,2717.3,1.0791]
[1763809406789,0.002,2717.4,2717.3,1.0791]
[1763809409799,0.4634,2717.4,2717.3,0.124]
[1763809412019,0.7343,2717.4,2717.3,0.124]
[1763809413129,0.002,2717.4,2717.3,0.5813]
[1763809414086,0.002,2717.4,2717.3,1.0791]
[1763809416009,0.2727,2717.4,2717.3,0.124]
[1763809416410,0.7324,2717.4,2717.0,0.001]
[1763809416609,0.7324,2717.4,2717.1,0.124]
[1763809416610,0.405504,2717.2,2717.1,0.124]
[1763809416810,0.96303639,2717.2,2717.1,0.124]
[1763809416990,1.69563639,2717.2,2717.1,0.124]
[1763809417187,1.69563639,2717.2,2717.0,0.001]
[1763809417502,1.48191412,2717.1,2717.0,0.001]
[1763809419825,1.138104,2717.1,2717.0,0.001]
[1763809420124,1.41312033,2717.1,2717.0,0.001]
[1763809420317,2.89768501,2717.1,2717.0,0.001]
[1763809420897,2.32011297,2717.1,2717.0,0.001]
[1763809421103,2.35693061,2717.1,2717.0,0.001]
[1763809421304,2.32011297,2717.1,2717.0,0.001]
[1763809422725,2.31771297,2717.1,2717.0,0.001]
[1763809423825,0.245,2717.1,2717.0,0.001]
[1763809424034,0.405504,2717.2,2717.0,0.001]
[1763809424396,0.245,2717.1,2717.0,0.001]
[1763809424732,0.39253424,2717.1,2717.0,0.001]
[1763809425536,0.245,2717.1,2717.0,0.001]
[1763809425828,0.14951846,2717.4,2717.0,0.9871]
[1763809426597,0.63711846,2717.4,2717.0,0.9871]
[1763809427101,0.14951846,2717.4,2717.0,0.9871]
[1763809428443,0.03681764,2717.3,2717.0,0.4987]
[1763809428613,0.245,2717.1,2717.0,0.001]
[1763809428931,0.14951846,2717.4,2717.0,0.001]
[1763809428932,0.63711846,2717.4,2717.0,0.001]
[1763809429427,0.4894,2717.4,2717.0,0.001]
[1763809429836,0.405504,2717.3,2717.0,0.001]
[1763809430003,0.46960313,2717.2,2717.0,0.001]
[1763809431156,0.405504,2717.1,2717.0,0.001]
[1763809431458,0.55304477,2717.1,2717.0,0.001]
[1763809436567,0.55544477,2717.1,2717.0,0.001]
[1763809437332,0.79794477,2717.1,2717.0,0.001]
[1763809437765,0.55544477,2717.1,2717.0,0.001]
[1763809438769,0.55304477,2717.1,2717.0,0.4987]
[1763809439334,0.55304477,2717.1,2717.0,0.001]
[1763809440479,0.55304477,2717.1,2717.0,0.4987]
[1763809440680,1.31449664,2717.6,2717.0,0.9871]
[1763809440881,0.904204,2717.4,2717.0,0.001]
[1763809441740,0.904204,2717.4,2717.0,0.4894]
[1763809441935,0.904204,2717.4,2717.0,0.001]
[1763809442152,1.149104,2717.4,2717.0,0.001]
[1763809442577,0.4987,2717.4,2717.0,0.001]
[1763809442755,0.405504,2717.5,2717.0,0.4894]
[1763809443079,0.34387057,2717.4,2717.0,0.4894]
[1763809443277,0.34387057,2717.4,2717.0,0.001]
[1763809443278,0.0024,2717.1,2717.0,0.001]
[1763809445680,3.80352727,2717.1,2717.0,0.001]
[1763809445987,15.70141132,2717.1,2717.0,0.001]
[1763809446181,16.28084127,2717.1,2717.0,0.001]
[1763809446345,9.98391451,2717.1,2717.0,0.001]
[1763809446847,7.47824875,2717.1,2717.0,0.001]
[1763809447041,9.32018662,2717.1,2717.0,0.001]
[1763809447490,9.75204151,2717.1,2717.0,0.001]
[1763809447982,24.78492151,2717.1,2717.0,0.001]
[1763809448186,21.69478127,2717.1,2717.0,0.001]
[1763809449039,25.05335427,2717.1,2717.0,0.001]
[1763809449188,26.5963907,2717.1,2717.0,0.001]
[1763809449980,27.0982547,2717.1,2717.0,0.001]
[1763809450993,27.5630337,2717.1,2717.0,0.001]
[1763809451207,27.0982547,2717.1,2717.0,0.001]
[1763809451506,15.8904977,2717.1,2717.0,0.001]
[1763809451986,25.09372764,2717.0,2716.9,0.001]
[1763809452186,28.26731471,2717.0,2716.9,0.001]
[1763809452390,27.94388771,2717.0,2716.9,0.001]
[1763809452566,24.75050371,2717.0,2716.9,0.001]
[1763809452768,15.33750071,2717.0,2716.9,0.001]
[1763809452961,15.19042771,2717.0,2716.9,0.001]
[1763809453996,20.61091371,2717.0,2716.9,0.001]
[1763809454503,16.21708671,2717.0,2716.9,0.001]
[1763809454851,23.32033525,2717.0,2716.9,0.001]
[1763809455055,23.93820625,2717.0,2716.9,0.001]
[1763809456089,28.23282825,2717.0,2716.9,0.001]
[1763809456259,28.38041965,2717.0,2716.9,0.001]
[1763809457183,28.21132965,2717.0,2716.9,0.001]
[1763809458093,30.62470965,2717.0,2716.9,0.001]
[1763809458297,30.17098065,2717.0,2716.9,0.001]
[1763809458498,30.17098065,2717.0,2716.3,0.001]
[1763809458499,23.02930664,2716.4,2716.3,0.001]
[1763809458663,23.02930664,2716.4,2714.6,0.1428]
[1763809458664,1.31249664,2716.2,2715.4,0.4777]
[1763809458863,9.09894856,2716.2,2715.4,0.4777]
[1763809459105,11.4884398,2716.2,2715.4,0.4777]
[1763809459459,15.04006407,2716.2,2714.6,0.1428]
[1763809459802,16.55647048,2716.2,2715.3,0.4787]
[1763809459975,17.13439427,2716.2,2715.3,0.4787]
[1763809460160,23.53050327,2716.2,2715.3,0.4787]
[1763809460361,23.02766527,2716.2,2715.3,0.4787]
[1763809460562,22.19863027,2716.2,2715.3,0.4787]
[1763809460757,22.63048516,2716.2,2715.3,0.001]
[1763809460964,23.11703525,2716.2,2715.3,0.001]
[1763809461164,25.21342825,2716.2,2715.3,0.001]
[1763809461992,23.56266925,2716.2,2715.3,0.001]
[1763809462167,24.41314725,2716.2,2715.3,0.4787]
[1763809462766,23.31358325,2716.2,2715.3,0.4787]
[1763809462962,10.05070709,2716.2,2715.6,0.4777]
[1763809463168,11.68086,2716.2,2715.6,0.4777]
[1763809463369,10.300342,2716.2,2715.6,0.4777]
[1763809463596,10.676842,2716.2,2715.6,0.4777]
[1763809464377,10.58809621,2716.2,2715.6,0.4777]
[1763809465321,10.69326521,2716.2,2715.6,0.4777]
[1763809465715,9.75026521,2716.2,2715.6,0.4777]
[1763809466215,18.35402064,2716.1,2715.3,0.001]
[1763809466417,20.7557,2715.9,2715.3,0.001]
[1763809466621,23.17457454,2715.9,2715.3,0.001]
[1763809466776,23.55127454,2715.9,2715.3,0.001]
[1763809466971,1.31249664,2715.8,2715.3,0.001]
[1763809467178,14.73557218,2715.6,2715.3,0.001]
[1763809467377,15.70472828,2715.6,2715.3,0.001]
[1763809467577,17.5778369,2715.6,2715.3,0.001]
[1763809468299,10.7411439,2715.6,2715.3,0.001]
[1763809468499,25.16753218,2715.4,2715.3,0.001]
[1763809468705,28.52268161,2715.4,2715.3,0.001]
[1763809468902,28.89938161,2715.4,2715.3,0.001]
[1763809469111,29.04706564,2715.4,2715.3,0.001]
[1763809469416,32.81354264,2715.4,2715.3,0.001]
[1763809469909,11.13279564,2715.1,2715.0,0.001]
[1763809470209,15.94834987,2715.1,2715.0,0.001]
[1763809470422,23.19291685,2715.1,2715.0,0.001]
[1763809470621,22.19291685,2715.1,2715.0,0.001]
[1763809471126,20.31103785,2715.1,2715.0,0.001]
[1763809471329,10.85480796,2715.1,2715.0,0.001]
[1763809471632,15.74884287,2715.1,2715.0,0.001]
[1763809472048,16.66724785,2715.1,2715.0,0.001]
[1763809472543,31.99244385,2715.1,2715.0,0.001]
[1763809472908,25.39449776,2715.1,2715.0,0.001]
[1763809473114,12.65582985,2715.1,2715.0,0.001]
[1763809473498,13.02082985,2715.1,2715.0,0.001]
[1763809473759,13.39752985,2715.1,2715.0,0.001]
[1763809474240,13.73877629,2715.1,2715.0,0.001]
[1763809474734,18.89618129,2715.1,2715.0,0.001]
[1763809475703,23.71193529,2715.1,2715.0,0.001]
[1763809476236,23.23366229,2715.1,2715.0,0.001]
[1763809476416,22.92995529,2715.1,2715.0,0.001]
[1763809476816,1.31249664,2715.0,2714.7,0.001]
[1763809477115,25.99802318,2714.8,2714.7,0.001]
[1763809477315,27.6343746,2714.8,2714.7,0.001]
[1763809477575,0.1096,2714.5,2713.8,0.001]
[1763809477852,15.52444391,2714.1,2713.8,0.001]
[1763809478137,3.42649664,2714.1,2714.0,0.4666]
[1763809478304,7.33317057,2714.1,2714.0,0.4545]
[1763809478833,6.2263263,2714.1,2714.0,0.4545]
[1763809479046,5.9093263,2714.1,2714.0,0.4545]
[1763809479214,5.9429263,2714.1,2714.0,0.4545]
[1763809479418,2.1341463,2714.1,2714.0,0.4545]
[1763809479628,4.2829763,2714.1,2714.0,0.4545]
[1763809479829,5.1088663,2714.1,2714.0,0.4545]
[1763809480819,5.0958663,2714.1,2714.0,0.4545]
[1763809481820,2.1341463,2714.1,2714.0,0.4545]
[1763809482017,5.0958663,2714.1,2714.0,0.4545]
[1763809482207,5.2674663,2714.1,2714.0,0.001]
[1763809482407,5.2674663,2714.1,2713.8,0.001]
[1763809482408,1.31249664,2714.0,2713.8,0.001]
[1763809482620,18.98641564,2713.9,2713.8,0.001]
[1763809482820,18.98641564,2713.9,2713.6,0.001]
[1763809482821,18.540659,2713.7,2713.6,0.001]
[1763809483114,25.21155195,2713.7,2713.6,0.001]
[1763809483313,25.58615195,2713.7,2713.6,0.001]
[1763809483621,28.15505715,2713.7,2713.6,0.001]
[1763809483935,31.07267515,2713.7,2713.6,0.001]
[1763809484240,30.14193215,2713.7,2713.6,0.001]
[1763809484936,35.45573915,2713.7,2713.6,0.001]
[1763809485905,30.53964615,2713.7,2713.6,0.001]
[1763809486141,29.52964615,2713.7,2713.6,0.001]
[1763809487043,1.31249664,2713.6,2712.2,0.124]
[1763809487347,1.31249664,2713.0,2712.6,0.4656]
[1763809487913,1.31249664,2713.0,2712.4,0.4656]
[1763809488112,0.405504,2712.8,2712.4,0.4656]
[1763809488440,0.405504,2712.9,2712.4,0.4656]
[1763809488642,0.405504,2712.7,2712.4,0.4656]
[1763809489203,0.405504,2712.7,2712.0,0.1883]
[1763809489420,0.405504,2712.7,2712.4,0.4656]
[1763809489622,0.405504,2712.7,2712.6,0.4535]
[1763809490011,0.405504,2712.7,2712.6,0.9191]
[1763809490658,0.405504,2712.7,2712.6,0.8691]
[1763809491458,0.405504,2712.7,2712.0,0.1883]
[1763809491459,0.405504,2712.5,2712.1,0.4656]
[1763809491751,0.405504,2712.5,2711.0,0.1883]
[1763809491752,1.48409664,2712.2,2711.6,0.4656]
[1763809491964,1.48409664,2712.2,2711.0,0.1883]
[1763809491965,0.405504,2712.0,2711.7,0.4656]
[1763809492125,0.405504,2712.0,2711.8,0.6582]
[1763809492327,10.55628964,2712.0,2711.9,0.4535]
[1763809492654,2.96497527,2712.0,2711.9,0.9191]
[1763809492953,1.77809664,2712.0,2711.9,0.9191]
[1763809493653,0.405504,2711.9,2711.6,0.1883]
[1763809494058,0.405504,2711.9,2711.8,0.4535]
[1763809494455,0.405504,2711.9,2711.8,0.9191]
[1763809496148,1.31249664,2711.9,2711.8,0.9191]
[1763809496343,0.62745293,2711.9,2711.8,0.9191]
[1763809496548,1.31249664,2711.9,2711.8,0.4535]
[1763809496770,0.405504,2711.9,2711.6,0.6539]
[1763809497066,0.654204,2711.9,2711.2,0.5896]
[1763809497274,0.405504,2711.9,2711.8,0.4535]
[1763809497479,1.01254497,2711.9,2711.8,0.4535]
[1763809497627,0.405504,2712.1,2711.8,0.9191]
[1763809497825,0.405504,2712.1,2712.0,0.4535]
[1763809498278,0.405504,2712.1,2712.0,0.9191]
[1763809499557,0.4535,2712.2,2712.0,0.9191]
[1763809499558,0.405504,2712.2,2712.0,0.9191]
[1763809499722,0.405504,2712.2,2712.1,1.1074]
[1763809499929,0.57870265,2712.4,2712.1,1.1074]
[1763809500168,0.90699264,2712.7,2712.1,1.1074]
[1763809500169,0.90699264,2712.7,2712.3,0.4535]
[1763809500465,0.405504,2712.4,2712.3,0.4535]
[1763809500834,0.56649057,2712.6,2712.3,0.4535]
[1763809500835,0.405504,2712.5,2712.3,0.4535]
[1763809501139,0.405504,2712.3,2711.0,0.1883]
[1763809501346,0.405504,2712.1,2711.1,0.4656]
[1763809501696,1.31249664,2711.9,2711.1,0.4656]
[1763809501866,0.405504,2711.7,2711.1,0.4656]
[1763809502366,0.405504,2711.6,2711.1,0.4656]
[1763809503569,0.405504,2711.5,2711.1,0.4656]
[1763809504065,0.405504,2711.5,2710.9,0.1883]
[1763809504066,1.31249664,2711.1,2710.9,0.1883]
[1763809504270,1.31249664,2711.1,2710.7,0.4656]
[1763809504271,0.405504,2710.9,2710.7,0.6539]
[1763809504430,3.41246664,2710.8,2710.7,0.1883]
[1763809504631,1.31249664,2710.7,2710.6,0.1883]
[1763809504855,0.405504,2710.7,2710.6,1.1074]
[1763809505267,1.31249664,2710.7,2710.6,1.1074]
[1763809505508,1.31249664,2710.7,2710.6,0.6418]
[1763809505509,1.88382656,2710.7,2710.6,0.6418]
[1763809505678,1.31249664,2710.7,2710.6,0.4535]
[1763809505880,0.405504,2710.7,2710.6,0.4535]
[1763809506476,0.1221,2710.7,2710.1,0.6875]
[1763809506700,1.31249664,2710.5,2710.1,0.1892]
[1763809507099,1.31249664,2710.5,2710.1,0.6875]
[1763809507305,1.31249664,2710.4,2710.1,0.6875]
[1763809507508,1.31249664,2710.4,2710.0,0.1]
[1763809507509,17.47555964,2710.1,2710.0,0.1]
[1763809507823,16.78163529,2710.1,2710.0,0.1]
[1763809507983,15.83781196,2710.1,2710.0,0.1]
[1763809508381,14.62108931,2710.1,2710.0,0.1]
[1763809508578,15.70140031,2710.1,2710.0,0.1]
[1763809508782,9.09203365,2710.1,2710.0,0.1]
[1763809508976,9.51563365,2710.1,2710.0,0.1]
[1763809509445,10.00218374,2710.1,2710.0,0.1]
[1763809509748,23.83936165,2710.1,2710.0,0.1]
[1763809509917,12.13412765,2710.1,2710.0,0.1]
[1763809510122,7.78781265,2710.1,2710.0,0.1]
[1763809510320,6.08037265,2710.1,2710.0,0.1]
[1763809510532,0.90699264,2710.1,2710.0,1.0647]
[1763809510911,5.172791,2710.5,2710.0,1.0647]
[1763809511112,1.10580106,2711.0,2710.4,0.4654]
[1763809511113,2.021162,2710.8,2710.4,0.4654]
[1763809511310,0.3391336,2710.7,2710.5,0.4654]
[1763809511544,0.90699264,2710.6,2710.1,0.6875]
[1763809511707,0.41059442,2710.6,2710.5,0.4654]
[1763809511912,0.90699264,2710.8,2710.5,0.4654]
[1763809512154,0.5983,2710.9,2710.8,0.4654]
[1763809512309,3.973833,2711.3,2710.8,0.4654]
[1763809512514,2.398947,2711.1,2710.9,0.4654]
[1763809512728,1.14224607,2711.8,2710.9,0.4654]
[1763809512729,7.766683,2711.5,2710.9,0.4654]
[1763809512951,2.032212,2711.1,2711.0,0.4654]
[1763809513141,0.4983,2711.1,2711.0,0.4654]
[1763809513947,0.4983,2711.1,2710.2,0.125]
[1763809513948,0.90699264,2710.9,2710.5,0.4983]